fUST/lending_fUST_20250120
["ID","MTS","AMOUNT","RATE_DAILY","PERIOD"]
[349603675,1737324639089,-500.0,0.00021917,3]
[349603677,1737324639098,-347.68643417,0.00021917,3]
[349603680,1737324639108,-500.0,0.00021917,3]
[349603682,1737324639117,-15061.67,0.00021917,3]
[349603683,1737324639126,-500.0,0.00021917,3]
[349603685,1737324639136,-500.0,0.00021917,3]
[349603687,1737324639145,-500.0,0.00021917,3]
[349603689,1737324639154,-500.0,0.00021917,3]
[349603692,1737324639168,-504.49,0.00021917,3]
[349603693,1737324639177,-500.0,0.00021917,3]
[349603695,1737324639186,-500.0,0.00021917,3]
[349603697,1737324639194,-1682.3,0.00021917,3]
[349603699,1737324639203,-500.0,0.00021917,3]
[349603701,1737324639212,-500.0,0.00021917,3]
[349603703,1737324639222,-500.0,0.00021917,3]
[349603705,1737324639231,-172.72443882,0.00021917,3]
[349603708,1737324639240,-500.0,0.00021917,3]
[349603710,1737324639249,-1233.72,0.00021917,3]
[349603711,1737324639258,-565.39,0.00021917,3]
[349603713,1737324639268,-500.0,0.00021917,3]
[349603716,1737324639277,-788.20590569,0.00021959,30]
[349603717,1737324639286,-1320.25997551,0.00021959,30]
[349603720,1737324639296,-584.05806523,0.00021973,2]
[349603722,1737324639306,-500.0,0.00021973,2]
[349603724,1737324639315,-500.0,0.00021973,2]
[349603725,1737324639324,-486.15627763,0.00021973,2]
[349603727,1737324639334,-500.0,0.00021973,2]
[349603729,1737324639344,-213.9167338,0.00021973,2]
[349603732,1737324639353,-510.40159725,0.00022053,2]
[349603734,1737324639362,-500.0,0.00022053,2]
[349603735,1737324639372,-500.0,0.00022053,2]
[349603737,1737324639381,-500.0,0.00022053,2]
[349603740,1737324639391,-500.0,0.00022053,2]
[349603741,1737324639401,-500.0,0.00022053,2]
[349603744,1737324639412,-500.0,0.00022053,2]
[349603746,1737324639422,-564.80593878,0.00022053,2]
[349603747,1737324639432,-500.0,0.00022053,2]
[349603749,1737324639442,-238.44921589,0.00022053,2]
[349603752,1737324639452,-500.0,0.00022053,2]
[349603753,1737324639461,-500.0,0.00022053,2]
[349603755,1737324639470,-500.0,0.00022053,2]
[349603757,1737324639480,-500.0,0.00022053,2]
[349603759,1737324639490,-305.4584295,0.00022053,2]
[349603761,1737324639500,-500.0,0.00022053,2]
[349603764,1737324639509,-500.0,0.00022053,2]
[349603766,1737324639519,-500.0,0.00022053,2]
[349603768,1737324639528,-500.0,0.00022053,2]
[349603769,1737324639537,-500.0,0.00022053,2]
[349603771,1737324639546,-500.0,0.00022053,2]
[349603773,1737324639556,-500.0,0.00022053,2]
[349603775,1737324639566,-500.0,0.00022053,2]
[349603778,1737324639576,-500.0,0.00022053,2]
[349603779,1737324639586,-500.0,0.00022054,3]
[349603781,1737324639596,-610.96849,0.00022054,3]
[349603783,1737324639606,-500.0,0.00022054,3]
[349603786,1737324639615,-500.0,0.00022054,3]
[349603788,1737324639625,-500.0,0.00022054,3]
[349603790,1737324639635,-500.0,0.00022054,3]
[349603791,1737324639645,-500.0,0.00022054,3]
[349603794,1737324639654,-500.0,0.00022054,3]
[349603796,1737324639667,-500.0,0.00022054,3]
[349603797,1737324639678,-500.0,0.00022054,3]
[349603799,1737324639687,-393.30386206,0.00022054,3]
[349603800,1737324639696,-500.0,0.00022054,3]
[349603802,1737324639705,-500.0,0.00022054,3]
[349603803,1737324639714,-500.0,0.00022054,3]
[349603804,1737324639723,-500.0,0.00022054,3]
[349603805,1737324639732,-573.25037079,0.00022054,3]
[349603806,1737324639741,-500.0,0.00022054,3]
[349603807,1737324639751,-500.0,0.00022054,3]
[349603808,1737324639760,-500.0,0.00022054,3]
[349603809,1737324639772,-500.0,0.00022054,2]
[349603810,1737324639781,-500.0,0.00022054,3]
[349603811,1737324639791,-500.0,0.00022054,3]
[349603812,1737324639799,-4853.11,0.00022054,3]
[349603813,1737324639810,-1993.2,0.00022054,3]
[349603814,1737324639819,-881.91,0.00022054,3]
[349603815,1737324639829,-500.0,0.00022054,3]
[349603816,1737324639839,-500.0,0.00022054,3]
[349603818,1737324639850,-500.0,0.00022054,3]
[349603820,1737324639859,-8689.86,0.00022054,3]
[349603822,1737324639868,-500.0,0.00022054,3]
[349603823,1737324639877,-500.0,0.00022054,3]
[349603826,1737324639887,-1226.58,0.00022054,3]
[349603828,1737324639896,-500.0,0.00022054,3]
[349603830,1737324639905,-500.0,0.00022054,3]
[349603832,1737324639918,-3967.21,0.00022054,3]
[349603834,1737324639927,-500.0,0.00022054,3]
[349603836,1737324639937,-663.29,0.00022054,3]
[349603838,1737324639947,-500.0,0.00022054,3]
[349603840,1737324639956,-1715.53,0.00022054,3]
[349603842,1737324639965,-1016.52,0.00022054,3]
[349603847,1737324639975,-524.25888756,0.00022054,3]
[349603850,1737324639984,-500.0,0.00022054,3]
[349603853,1737324639994,-500.0,0.00022054,3]
[349603855,1737324640003,-1163.17,0.00022054,3]
[349603857,1737324640013,-500.0,0.00022054,3]
[349603859,1737324640023,-5107.16,0.00022054,3]
[349603861,1737324640033,-2259.45,0.00022054,3]
[349603863,1737324640042,-1278.11,0.00022054,3]
[349603865,1737324640052,-500.0,0.00022054,3]
[349603867,1737324640061,-500.0,0.00022054,3]
[349603869,1737324640070,-15061.67,0.00022054,3]
[349603871,1737324640080,-500.0,0.00022054,3]
[349603873,1737324640089,-500.0,0.00022054,3]
[349603875,1737324640098,-500.0,0.00022054,3]
[349603877,1737324640108,-504.49,0.00022054,3]
[349603879,1737324640117,-500.0,0.00022054,3]
[349603881,1737324640127,-1682.3,0.00022054,3]
[349603883,1737324640136,-500.0,0.00022054,3]
[349603885,1737324640147,-500.0,0.00022054,3]
[349603887,1737324640156,-500.0,0.00022054,3]
[349603889,1737324640168,-500.0,0.00022054,3]
[349603891,1737324640177,-1233.72,0.00022054,3]
[349603893,1737324640186,-565.39,0.00022054,3]
[349603895,1737324640195,-500.0,0.00022054,3]
[349603897,1737324640203,-500.0,0.00022073,2]
[349603899,1737324640213,-500.0,0.00022073,2]
[349603901,1737324640223,-500.0,0.00022073,2]
[349603903,1737324640233,-636.0318621,0.00022111,2]
[349603905,1737324640242,-854.29718945,0.00022143,2]
[349603907,1737324640253,-503.31688556,0.00022173,2]
[349603909,1737324640263,-500.0,0.00022173,2]
[349603911,1737324640273,-500.0,0.00022173,2]
[349603913,1737324640283,-642.98576511,0.00022173,2]
[349603915,1737324640293,-500.0,0.00022191,3]
[349603918,1737324640303,-500.0,0.00022191,3]
[349603920,1737324640312,-500.0,0.00022191,3]
[349603922,1737324640321,-500.0,0.00022191,3]
[349603924,1737324640330,-500.0,0.00022191,3]
[349603926,1737324640340,-500.0,0.00022191,3]
[349603927,1737324640349,-500.0,0.00022191,3]
[349603929,1737324640359,-500.0,0.00022191,3]
[349603932,1737324640369,-500.0,0.00022191,3]
[349603934,1737324640378,-500.0,0.00022191,3]
[349603936,1737324640388,-500.0,0.00022191,3]
[349603938,1737324640398,-500.0,0.00022191,3]
[349603940,1737324640407,-500.0,0.00022191,3]
[349603942,1737324640420,-500.0,0.00022191,2]
[349603944,1737324640429,-500.0,0.00022191,3]
[349603946,1737324640438,-4853.11,0.00022191,3]
[349603948,1737324640448,-1993.2,0.00022191,3]
[349603950,1737324640457,-881.91,0.00022191,3]
[349603952,1737324640466,-500.0,0.00022191,3]
[349603954,1737324640475,-255.5479667,0.00022191,3]
[349603956,1737324640484,-500.0,0.00022191,3]
[349603958,1737324640494,-8689.86,0.00022191,3]
[349603960,1737324640504,-500.0,0.00022191,3]
[349603962,1737324640513,-500.0,0.00022191,3]
[349603964,1737324640523,-1226.58,0.00022191,3]
[349603966,1737324640532,-500.0,0.00022191,3]
[349603968,1737324640542,-500.0,0.00022191,3]
[349603970,1737324640551,-3967.21,0.00022191,3]
[349603972,1737324640560,-500.0,0.00022191,3]
[349603974,1737324640570,-663.29,0.00022191,3]
[349603976,1737324640579,-500.0,0.00022191,3]
[349603978,1737324640589,-1715.53,0.00022191,3]
[349603980,1737324640598,-1016.52,0.00022191,3]
[349603982,1737324640608,-500.0,0.00022191,3]
[349603984,1737324640617,-500.0,0.00022191,3]
[349603986,1737324640626,-1163.17,0.00022191,3]
[349603988,1737324640637,-500.0,0.00022191,3]
[349603990,1737324640646,-5107.16,0.00022191,3]
[349603992,1737324640656,-2259.45,0.00022191,3]
[349603994,1737324640670,-1278.11,0.00022191,3]
[349603996,1737324640680,-500.0,0.00022191,3]
[349603998,1737324640690,-500.0,0.00022191,3]
[349604000,1737324640700,-15061.67,0.00022191,3]
[349604002,1737324640709,-500.0,0.00022191,3]
[349604004,1737324640718,-500.0,0.00022191,3]
[349604006,1737324640727,-500.0,0.00022191,3]
[349604008,1737324640736,-504.49,0.00022191,3]
[349604010,1737324640747,-500.0,0.00022191,3]
[349604012,1737324640757,-1682.3,0.00022191,3]
[349604014,1737324640766,-500.0,0.00022191,3]
[349604016,1737324640775,-500.0,0.00022191,3]
[349604018,1737324640784,-500.0,0.00022191,3]
[349604020,1737324640794,-500.0,0.00022191,3]
[349604022,1737324640804,-1233.72,0.00022191,3]
[349604024,1737324640814,-565.39,0.00022191,3]
[349604026,1737324640824,-500.0,0.00022191,3]
[349604028,1737324640833,-2752.146283,0.000223,2]
[349604030,1737324640843,-500.0,0.00022328,3]
[349604032,1737324640852,-500.0,0.00022328,3]
[349604034,1737324640862,-500.0,0.00022328,3]
[349604036,1737324640871,-500.0,0.00022328,3]
[349604038,1737324640881,-500.0,0.00022328,3]
[349604040,1737324640890,-500.0,0.00022328,3]
[349604042,1737324640899,-500.0,0.00022328,3]
[349604044,1737324640908,-500.0,0.00022328,3]
[349604046,1737324640919,-500.0,0.00022328,3]
[349604048,1737324640929,-500.0,0.00022328,3]
[349604050,1737324640938,-500.0,0.00022328,3]
[349604052,1737324640947,-500.0,0.00022328,3]
[349604054,1737324640957,-500.0,0.00022328,3]
[349604056,1737324640966,-500.0,0.00022328,2]
[349604058,1737324640976,-500.0,0.00022328,3]
[349604060,1737324640985,-4853.11,0.00022328,3]
[349604062,1737324640994,-1993.2,0.00022328,3]
[349604064,1737324641003,-881.91,0.00022328,3]
[349604066,1737324641012,-500.0,0.00022328,3]
[349604068,1737324641022,-500.0,0.00022328,3]
[349604070,1737324641031,-8689.86,0.00022328,3]
[349604072,1737324641040,-500.0,0.00022328,3]
[349604074,1737324641049,-500.0,0.00022328,3]
[349604076,1737324641058,-1226.58,0.00022328,3]
[349604078,1737324641068,-500.0,0.00022328,3]
[349604080,1737324641077,-500.0,0.00022328,3]
[349604082,1737324641087,-3967.21,0.00022328,3]
[349604084,1737324641096,-500.0,0.00022328,3]
[349604086,1737324641106,-663.29,0.00022328,3]
[349604088,1737324641116,-500.0,0.00022328,3]
[349604090,1737324641125,-1715.53,0.00022328,3]
[349604092,1737324641134,-1016.52,0.00022328,3]
[349604094,1737324641143,-500.0,0.00022328,3]
[349604096,1737324641153,-500.0,0.00022328,3]
[349604098,1737324641165,-1163.17,0.00022328,3]
[349604100,1737324641175,-500.0,0.00022328,3]
[349604102,1737324641184,-5107.16,0.00022328,3]
[349604104,1737324641193,-2259.45,0.00022328,3]
[349604106,1737324641202,-1278.11,0.00022328,3]
[349604108,1737324641212,-500.0,0.00022328,3]
[349604110,1737324641222,-500.0,0.00022328,3]
[349604112,1737324641231,-15061.67,0.00022328,3]
[349604114,1737324641240,-500.0,0.00022328,3]
[349604116,1737324641249,-500.0,0.00022328,3]
[349604118,1737324641259,-500.0,0.00022328,3]
[349604120,1737324641269,-504.49,0.00022328,3]
[349604122,1737324641278,-500.0,0.00022328,3]
[349604124,1737324641289,-1682.3,0.00022328,3]
[349604126,1737324641298,-500.0,0.00022328,3]
[349604128,1737324641308,-500.0,0.00022328,3]
[349604130,1737324641318,-500.0,0.00022328,3]
[349604132,1737324641327,-500.0,0.00022328,3]
[349604134,1737324641337,-1233.72,0.00022328,3]
[349604136,1737324641346,-565.39,0.00022328,3]
[349604138,1737324641355,-501.288916,0.00022373,2]
[349604140,1737324641364,-500.0,0.00022373,2]
[349604142,1737324641374,-3123.0,0.00022464,4]
[349604144,1737324641383,-500.0,0.00022465,3]
[349604146,1737324641392,-500.0,0.00022465,3]
[349604148,1737324641402,-456.57459213,0.00022465,3]
[349604150,1737324641413,-500.0,0.00022465,3]
[349604152,1737324641422,-500.0,0.00022465,3]
[349604154,1737324641431,-385.34242912,0.00022465,3]
[349604156,1737324641440,-500.0,0.00022465,3]
[349604158,1737324641449,-500.0,0.00022465,3]
[349604170,1737324641549,-500.0,0.00022465,3]
[349604172,1737324641559,-500.0,0.00022465,3]
[349604174,1737324641568,-163.41791159,0.00022465,3]
[349604175,1737324641582,-500.0,0.00022465,3]
[349604178,1737324641591,-167.4577965,0.00022465,3]
[349604179,1737324641601,-500.0,0.00022465,2]
[349604181,1737324641610,-500.0,0.00022465,3]
[349604184,1737324641619,-4853.11,0.00022465,3]
[349604186,1737324641629,-1993.2,0.00022465,3]
[349604188,1737324641638,-881.91,0.00022465,3]
[349604190,1737324641647,-500.0,0.00022465,3]
[349604192,1737324641655,-500.0,0.00022465,3]
[349604194,1737324641668,-8689.86,0.00022465,3]
[349604196,1737324641677,-500.0,0.00022465,3]
[349604198,1737324641687,-627.77265548,0.00022465,3]
[349604200,1737324641696,-1226.58,0.00022465,3]
[349604202,1737324641705,-500.0,0.00022465,3]
[349604204,1737324641715,-500.0,0.00022465,3]
[349604206,1737324641724,-3967.21,0.00022465,3]
[349604208,1737324641733,-500.0,0.00022465,3]
[349604210,1737324641743,-663.29,0.00022465,3]
[349604212,1737324641753,-500.0,0.00022465,3]
[349604214,1737324641764,-1715.53,0.00022465,3]
[349604216,1737324641773,-1016.52,0.00022465,3]
[349604218,1737324641783,-500.0,0.00022465,3]
[349604220,1737324641792,-500.0,0.00022465,3]
[349604222,1737324641801,-1163.17,0.00022465,3]
[349604224,1737324641811,-500.0,0.00022465,3]
[349604226,1737324641821,-5107.16,0.00022465,3]
[349604228,1737324641832,-2259.45,0.00022465,3]
[349604230,1737324641844,-1278.11,0.00022465,3]
[349604232,1737324641854,-500.0,0.00022465,3]
[349604234,1737324641863,-500.0,0.00022465,3]
[349604236,1737324641872,-15061.67,0.00022465,3]
[349604238,1737324641882,-500.0,0.00022465,3]
[349604240,1737324641890,-500.0,0.00022465,3]
[349604242,1737324641900,-500.0,0.00022465,3]
[349604244,1737324641910,-504.49,0.00022465,3]
[349604246,1737324641920,-500.0,0.00022465,3]
[349604248,1737324641929,-1682.3,0.00022465,3]
[349604250,1737324641938,-500.0,0.00022465,3]
[349604252,1737324641947,-500.0,0.00022465,3]
[349604254,1737324641956,-500.0,0.00022465,3]
[349604256,1737324641966,-500.0,0.00022465,3]
[349604257,1737324641975,-1233.72,0.00022465,3]
[349604259,1737324641984,-565.39,0.00022465,3]
[349604262,1737324641994,-854.29718945,0.00022469,2]
[349604264,1737324642003,-18645.74190706,0.00022501,3]
[349604266,1737324642012,-1007.29459814,0.00022521,2]
[349604268,1737324642021,-1000.0,0.00022521,2]
[349604270,1737324642030,-500.0,0.00022532,2]
[349604272,1737324642039,-394.80844747,0.00022565,2]
[349604274,1737324642048,-500.0,0.00022565,2]
[349604276,1737324642058,-500.0,0.0002257,2]
[349604278,1737324642067,-161.449805,0.0002257,2]
[349604280,1737324642077,-307.86128096,0.00022599,2]
[349604282,1737324642086,-500.0,0.00022599,2]
[349604284,1737324642095,-500.0,0.00022599,2]
[349604286,1737324642105,-500.0,0.00022599,2]
[349604288,1737324642114,-398.4587289,0.00022599,2]
[349604290,1737324642123,-500.0,0.00022599,2]
[349604292,1737324642132,-500.0,0.00022599,2]
[349604294,1737324642141,-1163.16,0.000226,2]
[349604296,1737324642150,-500.0,0.00022602,3]
[349604298,1737324642159,-500.0,0.00022602,3]
[349604300,1737324642170,-500.0,0.00022602,3]
[349604302,1737324642180,-500.0,0.00022602,3]
[349604303,1737324642189,-500.0,0.00022602,3]
[349604306,1737324642198,-500.0,0.00022602,3]
[349604308,1737324642207,-500.0,0.00022602,3]
[349604309,1737324642216,-500.0,0.00022602,3]
[349604311,1737324642225,-500.0,0.00022602,2]
[349604314,1737324642235,-500.0,0.00022602,3]
[349604316,1737324642244,-4853.11,0.00022602,3]
[349604317,1737324642253,-1993.2,0.00022602,3]
[349604319,1737324642263,-881.91,0.00022602,3]
[349604322,1737324642273,-500.0,0.00022602,3]
[349604323,1737324642282,-500.0,0.00022602,3]
[349604325,1737324642291,-8689.86,0.00022602,3]
[349604328,1737324642300,-500.0,0.00022602,3]
[349604330,1737324642310,-1226.58,0.00022602,3]
[349604332,1737324642319,-500.0,0.00022602,3]
[349604334,1737324642329,-500.0,0.00022602,3]
[349604336,1737324642338,-3967.21,0.00022602,3]
[349604338,1737324642347,-500.0,0.00022602,3]
[349604340,1737324642356,-663.29,0.00022602,3]
[349604342,1737324642365,-500.0,0.00022602,3]
[349604344,1737324642374,-1715.53,0.00022602,3]
[349604346,1737324642384,-1016.52,0.00022602,3]
[349604348,1737324642392,-500.0,0.00022602,3]
[349604350,1737324642402,-500.0,0.00022602,3]
[349604352,1737324642412,-1163.17,0.00022602,3]
[349604353,1737324642421,-500.0,0.00022602,3]
[349604356,1737324642431,-5107.16,0.00022602,3]
[349604358,1737324642440,-2259.45,0.00022602,3]
[349604360,1737324642449,-1278.11,0.00022602,3]
[349604362,1737324642458,-500.0,0.00022602,3]
[349604364,1737324642467,-500.0,0.00022602,3]
[349604366,1737324642476,-15061.67,0.00022602,3]
[349604368,1737324642486,-500.0,0.00022602,3]
[349604370,1737324642495,-500.0,0.00022602,3]
[349604372,1737324642505,-500.0,0.00022602,3]
[349604374,1737324642514,-504.49,0.00022602,3]
[349604376,1737324642524,-500.0,0.00022602,3]
[349604378,1737324642533,-1682.3,0.00022602,3]
[349604380,1737324642543,-500.0,0.00022602,3]
[349604382,1737324642552,-500.0,0.00022602,3]
[349604384,1737324642561,-500.0,0.00022602,3]
[349604386,1737324642570,-234.97224119,0.00022602,3]
[349604388,1737324642579,-1233.72,0.00022602,3]
[349604390,1737324642589,-1000.0,0.00022621,2]
[349604392,1737324642598,-493.59008555,0.00022621,2]
[349604394,1737324642607,-500.0,0.00022721,2]
[349604396,1737324642616,-1000.0,0.00022721,2]
[349604398,1737324642625,-173.88574405,0.00022738,2]
[349604400,1737324642634,-500.0,0.00022739,3]
[349604402,1737324642644,-500.0,0.00022739,3]
[349604405,1737324642665,-500.0,0.00022739,3]
[349604407,1737324642676,-500.0,0.00022739,3]
[349604409,1737324642686,-500.0,0.00022739,3]
[349604411,1737324642696,-500.0,0.00022739,3]
[349604413,1737324642705,-500.0,0.00022739,3]
[349604415,1737324642715,-500.0,0.00022739,3]
[349604417,1737324642726,-500.0,0.00022739,2]
[349604419,1737324642735,-500.0,0.00022739,3]
[349604421,1737324642745,-4853.11,0.00022739,3]
[349604423,1737324642758,-1993.2,0.00022739,3]
[349604425,1737324642767,-881.91,0.00022739,3]
[349604427,1737324642777,-500.0,0.00022739,3]
[349604431,1737324642787,-500.0,0.00022739,3]
[349604434,1737324642797,-8689.86,0.00022739,3]
[349604436,1737324642806,-500.0,0.00022739,3]
[349604438,1737324642816,-1226.58,0.00022739,3]
[349604440,1737324642826,-500.0,0.00022739,3]
[349604442,1737324642836,-500.0,0.00022739,3]
[349604444,1737324642846,-3967.21,0.00022739,3]
[349604446,1737324642855,-500.0,0.00022739,3]
[349604448,1737324642865,-663.29,0.00022739,3]
[349604450,1737324642875,-500.0,0.00022739,3]
[349604452,1737324642885,-1715.53,0.00022739,3]
[349604454,1737324642894,-1016.52,0.00022739,3]
[349604456,1737324642903,-500.0,0.00022739,3]
[349604458,1737324642914,-500.0,0.00022739,3]
[349604460,1737324642924,-1163.17,0.00022739,3]
[349604462,1737324642934,-500.0,0.00022739,3]
[349604464,1737324642943,-5107.16,0.00022739,3]
[349604467,1737324642952,-2259.45,0.00022739,3]
[349604470,1737324642962,-1278.11,0.00022739,3]
[349604472,1737324642971,-500.0,0.00022739,3]
[349604474,1737324642981,-500.0,0.00022739,3]
[349604476,1737324642990,-15061.67,0.00022739,3]
[349604478,1737324643000,-500.0,0.00022739,3]
[349604481,1737324643009,-500.0,0.00022739,3]
[349604483,1737324643019,-500.0,0.00022739,3]
[349604485,1737324643029,-504.49,0.00022739,3]
[349604487,1737324643038,-500.0,0.00022739,3]
[349604489,1737324643048,-1682.3,0.00022739,3]
[349604491,1737324643058,-500.0,0.00022739,3]
[349604492,1737324643067,-500.0,0.00022739,3]
[349604493,1737324643077,-500.0,0.00022739,3]
[349604494,1737324643086,-1233.72,0.00022739,3]
[349604496,1737324643095,-854.29718945,0.00022795,2]
[349604497,1737324643105,-151.0,0.000228,5]
[349604498,1737324643114,-500.0,0.00022876,3]
[349604499,1737324643123,-500.0,0.00022876,3]
[349604500,1737324643133,-500.0,0.00022876,3]
[349604501,1737324643142,-409.61338743,0.00022876,3]
[349604502,1737324643151,-500.0,0.00022876,3]
[349604503,1737324643163,-500.0,0.00022876,3]
[349604505,1737324643173,-500.0,0.00022876,3]
[349604508,1737324643182,-500.0,0.00022876,3]
[349604509,1737324643192,-500.0,0.00022876,2]
[349604512,1737324643201,-500.0,0.00022876,3]
[349604515,1737324643210,-4853.11,0.00022876,3]
[349604517,1737324643219,-1993.2,0.00022876,3]
[349604519,1737324643229,-881.91,0.00022876,3]
[349604521,1737324643238,-500.0,0.00022876,3]
[349604523,1737324643247,-8689.86,0.00022876,3]
[349604525,1737324643256,-500.0,0.00022876,3]
[349604527,1737324643266,-1226.58,0.00022876,3]
[349604530,1737324643275,-500.0,0.00022876,3]
[349604532,1737324643285,-500.0,0.00022876,3]
[349604534,1737324643294,-3967.21,0.00022876,3]
[349604536,1737324643303,-663.29,0.00022876,3]
[349604538,1737324643313,-500.0,0.00022876,3]
[349604540,1737324643322,-1715.53,0.00022876,3]
[349604542,1737324643332,-1016.52,0.00022876,3]
[349604544,1737324643341,-500.0,0.00022876,3]
[349604546,1737324643351,-500.0,0.00022876,3]
[349604548,1737324643360,-1163.17,0.00022876,3]
[349604550,1737324643369,-500.0,0.00022876,3]
[349604552,1737324643378,-5107.16,0.00022876,3]
[349604554,1737324643387,-2259.45,0.00022876,3]
[349604556,1737324643397,-1278.11,0.00022876,3]
[349604558,1737324643406,-500.0,0.00022876,3]
[349604560,1737324643418,-635.07173554,0.00022876,3]
[349604562,1737324643428,-15061.67,0.00022876,3]
[349604564,1737324643438,-500.0,0.00022876,3]
[349604566,1737324643447,-500.0,0.00022876,3]
[349604568,1737324643456,-504.49,0.00022876,3]
[349604570,1737324643466,-500.0,0.00022876,3]
[349604572,1737324643475,-1682.3,0.00022876,3]
[349604574,1737324643485,-500.0,0.00022876,3]
[349604576,1737324643495,-500.0,0.00022876,3]
[349604578,1737324643504,-500.0,0.00022876,3]
[349604580,1737324643514,-1233.72,0.00022876,3]
[349604583,1737324643526,-1000.0,0.00022921,2]
[349604585,1737324643536,-423.947,0.0002299,2]
[349604587,1737324643545,-395.0,0.00022994,2]
[349604589,1737324643554,-7438.69753278,0.00023,2]
[349604591,1737324643564,-151.0,0.00023,9]
[349604593,1737324643573,-7438.69753278,0.00023,3]
[349604595,1737324643583,-500.0,0.00023013,3]
[349604597,1737324643592,-500.0,0.00023013,3]
[349604599,1737324643602,-500.0,0.00023013,3]
[349604601,1737324643611,-500.0,0.00023013,3]
[349604603,1737324643620,-500.0,0.00023013,3]
[349604605,1737324643630,-500.0,0.00023013,3]
[349604607,1737324643639,-500.0,0.00023013,3]
[349604609,1737324643649,-500.0,0.00023013,2]
[349604611,1737324643658,-500.0,0.00023013,3]
[349604613,1737324643670,-4853.11,0.00023013,3]
[349604615,1737324643680,-1993.2,0.00023013,3]
[349604617,1737324643690,-881.91,0.00023013,3]
[349604619,1737324643700,-500.0,0.00023013,3]
[349604621,1737324643709,-8689.86,0.00023013,3]
[349604623,1737324643719,-500.0,0.00023013,3]
[349604625,1737324643729,-1226.58,0.00023013,3]
[349604627,1737324643739,-231.42,0.00023013,3]
[349604629,1737324643750,-3967.21,0.00023013,3]
[349604632,1737324643762,-663.29,0.00023013,3]
[349604634,1737324643772,-500.0,0.00023013,3]
[349604638,1737324643782,-1715.53,0.00023013,3]
[349604642,1737324643791,-1016.52,0.00023013,3]
[349604644,1737324643801,-500.0,0.00023013,3]
[349604646,1737324643812,-207.34,0.00023013,3]
[349604649,1737324643822,-1163.17,0.00023013,3]
[349604651,1737324643832,-500.0,0.00023013,3]
[349604653,1737324643842,-5107.16,0.00023013,3]
[349604655,1737324643851,-2259.45,0.00023013,3]
[349604657,1737324643862,-1278.11,0.00023013,3]
[349604659,1737324643871,-500.0,0.00023013,3]
[349604661,1737324643881,-15061.67,0.00023013,3]
[349604663,1737324643891,-500.0,0.00023013,3]
[349604665,1737324643901,-500.0,0.00023013,3]
[349604667,1737324643914,-504.49,0.00023013,3]
[349604669,1737324643925,-500.0,0.00023013,3]
[349604671,1737324643935,-1682.3,0.00023013,3]
[349604673,1737324643945,-500.0,0.00023013,3]
[349604675,1737324643955,-500.0,0.00023013,3]
[349604677,1737324643964,-1233.72,0.00023013,3]
[349604679,1737324643975,-500.0,0.0002304,2]
[349604681,1737324643985,-500.0,0.0002304,2]